{"text_format":"3","workbook":"xlsx","n_sheets":4,"sheets":["Intro","Entry Sheet","Calculation ","Report Section"],"not_rendered":{"macros":1,"defined_names":6},"read":"whole","date_system":"1900"}

{"sheet":"Intro","index":0,"n_rows":10,"n_cols":1,"rows_kept":10,"merged":[[0,0,1,7],[2,0,2,7],[3,0,3,7],[4,0,4,7],[5,0,5,7],[6,0,6,7],[7,0,7,7],[8,0,8,7],[9,0,9,7]]}
["jktdh; fo|ky;ksa esa izos'kksRlo ds nkSjku nSfud lwpuk Hkstus ds fy, fMVsy 'khV ds lkFk lHkh fjiksVZ vkWVks tujsV"]
[]
["Made By : Chandra Prakash Saini, Lecturer in English, GHSS Arnoda (Chittaurgarh)"]
[";g 'khV jktdh; fo|ky;ksa esa izos'kksRlo ds nkSjku nSfud o MsV ls MsV fjiksVZ Hkstus ds fy, vkidh lgk;rk ds fy, cukbZ xbZ gSA "]
["lcls igys 'khV ds Open gksrs gh Left  Side esa lcls Åij fn, Enable Content cVu ij fDyd djssaA"]
["Entry Sheet esa vkidks flQZ MkVk ,UVªh djuh gSA "]
["Calculation Sheet esa vkidks dsoy MsV pquuh gS mlds ckn lHkh MkVk vkidks uhps cuh lkfj.kh esa iznf'kZr gksxsaA vkidks lkfj.kh ds lkeus fn, x, uhyss dyj ds rhj ds fu'kku ij fDyd djuk gSA "]
["Report Sheet esa vkidks izfrfnu vkSj MsV ls MsV o dsVsxjh okbZt fjiksVZ feysxhA"]
["lHkh 'khV dk ikloMZ admit gSA fgUnh QkWUV DevLys 010 o English font Times New Roman dk iz;ksx fd;k x;k gSA"]
["fdlh Hkh lq>ko ;k lgk;rk ds fy, lEidZ djsa %& cpsaini01@gmail.com"]

{"sheet":"Entry Sheet","index":1,"n_rows":67,"n_cols":19,"rows_kept":67,"merged":[[0,0,0,9]]}
["bl 'khV ds lHkh dkWye esa vkidks flQZ MkVk Hkjus gSaA Date,  Class vkSj Gender esa Drop Down Menu gSA vki pkgs rks lh/ks Vkbi Hkh dj ldrs gSa vkSj Drop Down Menu ls Hkh lysDV dj ldrs gSaA"]
["Date","Name of Student","Class","Gender","Category","Father's Name","Mother's Name","Contact Number","Addresss","Alloted S.R.No."]
["2020-07-01","ABCD",12,"Boy","General","Mister A","Mrs A",123456789,"NBH",1212,{"$nulls":3},{"$f":"'Report Section'!X4","v":"2020-07-01"}]
[]
[{"$nulls":12},"Gender",null,"Gender",null,"Date",null,"Class"]
[{"$nulls":12},"General",null,"Boy",null,"2020-07-01",null,1]
[{"$nulls":12},"SC",null,"Girl",null,"2020-07-02",null,2]
[{"$nulls":12},"ST",{"$nulls":3},"2020-07-03",null,3]
[{"$nulls":12},"OBC",{"$nulls":3},"2020-07-04",null,4]
[{"$nulls":12},"SBC",{"$nulls":3},"2020-07-05",null,5]
[{"$nulls":12},"Minority",{"$nulls":3},"2020-07-06",null,6]
[{"$nulls":16},"2020-07-07",null,7]
[{"$nulls":16},"2020-07-08",null,8]
[{"$nulls":16},"2020-07-09",null,9]
[{"$nulls":16},"2020-07-10",null,10]
[{"$nulls":16},"2020-07-11",null,11]
[{"$nulls":16},"2020-07-12",null,12]
[{"$nulls":16},"2020-07-13"]
[{"$nulls":16},"2020-07-14"]
[{"$nulls":16},"2020-07-15"]
[{"$nulls":16},"2020-07-16"]
[{"$nulls":16},"2020-07-17"]
[{"$nulls":16},"2020-07-18"]
[{"$nulls":16},"2020-07-19"]
[{"$nulls":16},"2020-07-20"]
[{"$nulls":16},"2020-07-21"]
[{"$nulls":16},"2020-07-22"]
[{"$nulls":16},"2020-07-23"]
[{"$nulls":16},"2020-07-24"]
[{"$nulls":16},"2020-07-25"]
[{"$nulls":16},"2020-07-26"]
[{"$nulls":16},"2020-07-27"]
[{"$nulls":16},"2020-07-28"]
[{"$nulls":16},"2020-07-29"]
[{"$nulls":16},"2020-07-30"]
[{"$nulls":16},"2020-07-31"]
[{"$nulls":16},"2020-08-01"]
[{"$nulls":16},"2020-08-02"]
[{"$nulls":16},"2020-08-03"]
[{"$nulls":16},"2020-08-04"]
[{"$nulls":16},"2020-08-05"]
[{"$nulls":16},"2020-08-06"]
[{"$nulls":16},"2020-08-07"]
[{"$nulls":16},"2020-08-08"]
[{"$nulls":16},"2020-08-09"]
[{"$nulls":16},"2020-08-10"]
[{"$nulls":16},"2020-08-11"]
[{"$nulls":16},"2020-08-12"]
[{"$nulls":16},"2020-08-13"]
[{"$nulls":16},"2020-08-14"]
[{"$nulls":16},"2020-08-15"]
[{"$nulls":16},"2020-08-16"]
[{"$nulls":16},"2020-08-17"]
[{"$nulls":16},"2020-08-18"]
[{"$nulls":16},"2020-08-19"]
[{"$nulls":16},"2020-08-20"]
[{"$nulls":16},"2020-08-21"]
[{"$nulls":16},"2020-08-22"]
[{"$nulls":16},"2020-08-23"]
[{"$nulls":16},"2020-08-24"]
[{"$nulls":16},"2020-08-25"]
[{"$nulls":16},"2020-08-26"]
[{"$nulls":16},"2020-08-27"]
[{"$nulls":16},"2020-08-28"]
[{"$nulls":16},"2020-08-29"]
[{"$nulls":16},"2020-08-30"]
[{"$nulls":16},"2020-08-31"]

{"sheet":"Calculation ","index":2,"n_rows":106,"n_cols":15,"rows_kept":106,"merged":[[0,0,0,1],[0,11,0,14],[1,0,2,0],[4,0,4,9]]}
["Date dkWye esa vkidks 01-07-2020 ls 31-08-2020 ds chp dh MsV bUVj djuh gSA pkgs rks Drop Down Menu ls Hkh MsV pqu ldrs gSaA",null,"Name of Student esa dqN ugha fy[kuk gSA ","Class Wise Search djuk gS rks gh Dykl  fy[ksa vU;Fkk dkWye [kkyh j[ksaA","Gender Wise Search djuk gS rks gh Boy ;k Girl fy[ksa vU;Fkk dkWye [kkyh j[ksaA","Category dkWye esa dqN ugha fy[kuk gSA","Fathers's Name dkWye esa dqN ugha fy[kuk gSA","Mothers's Name dkWye esa dqN ugha fy[kuk gSA","Contact Number dkWye esa dqN ugha fy[kuk gSA","Address\ndkWye esa dqN ugha fy[kuk gSA","Alloted S.R.No.\ndkWye esa dqN ugha fy[kuk gSA","lkeus ds lHkh dkWye dh iwfrZ djus ds ckn uhps fn, x, uhys dyj ds cVu ij fDyd djsaA "]
["Search Here","Date","Name of Student","Class","Gender","Category","Father's Name","Mother's Name","Contact Number","Addresss","Alloted S.R.No."]
[null,"2020-07-01"]
[]
["bl lkfj.kh esa vkidks dqN Hkh ugha fy[kuk gSA mij lpZ djus ds vuqlkj blesa vkidks fjiksVZ 'kks gksxhA"]
["S.N.","Date","Name of Student","Class","Gender","Category","Father's Name","Mother's Name","Contact Number","Addresss","Alloted S.R.No.","Date","Boy","Girl","Total"]
[1,"2020-07-01","ABCD",12,"Boy","General","Mister A","Mrs A",123456789,"NBH",1212,{"$f":"Table13[Date]","v":"2020-07-01"},{"$f":"COUNTIF(E7:E106,\"Boy\")","v":1},{"$f":"COUNTIF(E7:E106,\"Girl\")","v":0},{"$f":"SUM(M7:N7)","v":1}]
[2]
[3]
[4]
[5]
[6]
[7]
[8]
[9]
[10]
[11]
[12]
[13]
[14]
[15]
[16]
[17]
[18]
[19]
[20]
[21]
[22]
[23]
[24]
[25]
[26]
[27]
[28]
[29]
[30]
[31]
[32]
[33]
[34]
[35]
[36]
[37]
[38]
[39]
[40]
[41]
[42]
[43]
[44]
[45]
[46]
[47]
[48]
[49]
[50]
[51]
[52]
[53]
[54]
[55]
[56]
[57]
[58]
[59]
[60]
[61]
[62]
[63]
[64]
[65]
[66]
[67]
[68]
[69]
[70]
[71]
[72]
[73]
[74]
[75]
[76]
[77]
[78]
[79]
[80]
[81]
[82]
[83]
[84]
[85]
[86]
[87]
[88]
[89]
[90]
[91]
[92]
[93]
[94]
[95]
[96]
[97]
[98]
[99]
[100]

{"sheet":"Report Section","index":3,"n_rows":28,"n_cols":40,"rows_kept":28,"merged":[[0,0,1,39],[2,0,2,39],[3,10,3,22],[3,23,3,26],[4,0,6,0],[4,1,4,3],[4,4,4,6],[4,7,4,9],[4,10,4,12],[4,13,4,15],[4,16,4,18],[4,19,4,21],[4,22,4,24],[4,25,4,27],[4,28,4,30],[4,31,4,33],[4,34,4,36],[4,37,4,39],[14,10,15,18],[14,19,15,22],[14,23,15,27],[14,28,15,31],[14,32,15,39],[17,0,19,0],[17,1,17,3],[17,4,17,6],[17,7,17,9],[17,10,17,12],[17,13,17,15],[17,16,17,18],[17,19,17,21],[17,22,17,24],[17,25,17,27],[17,28,17,30],[17,31,17,33],[17,34,17,36],[17,37,17,39],[27,6,30,12],[27,32,30,38]]}
["bl lkfj.kh esa vkidks izfrfnu o MsV ls MsV fjiksVZ feysxhA"]
[]
["dk;kZy; % jktdh; mPp ek/;fed fo|ky;] vjuksnk ia- l- fuEckgsM+k ftyk ¼fpÙkkSM+x<+½"]
[{"$nulls":10},"Daily admission details of : ",{"$nulls":12},"2020-07-01"]
["Category","Class 1",null,null,"Class 2",null,null,"Class 3",null,null,"Class 4",null,null,"Class 5",null,null,"Class 6",null,null,"Class 7",null,null,"Class 8",null,null,"Class 9",null,null,"Class 10",null,null,"Class 11",null,null,"Class 12",null,null,"TOTAL"]
[null,"Boy","Girl","Total","Boy","Girl","Total","Boy","Girl","Total","Boy","Girl","Total","Boy","Girl","Total","Boy","Girl","Total","Boy","Girl","Total","Boy","Girl","Total","Boy","Girl","Total","Boy","Girl","Total","Boy","Girl","Total","Boy","Girl","Total","Boy","Girl","Total"]
[null,{"$f":"COUNTIFS(Table1[Date],'Entry Sheet'!$N$3,Table1[Class],\"1\",Table1[Gender],\"Boy\")","v":0},{"$f":"COUNTIFS(Table1[Date],'Entry Sheet'!$N$3,Table1[Class],\"1\",Table1[Gender],\"Girl\")","v":0},{"$f":"SUM(B7:C7)","v":0},{"$f":"COUNTIFS(Table1[Date],'Entry Sheet'!$N$3,Table1[Class],\"2\",Table1[Gender],\"Boy\")","v":0},{"$f":"COUNTIFS(Table1[Date],'Entry Sheet'!$N$3,Table1[Class],\"2\",Table1[Gender],\"Girl\")","v":0},{"$f":"SUM(E7:F7)","v":0},{"$f":"COUNTIFS(Table1[Date],'Entry Sheet'!$N$3,Table1[Class],\"3\",Table1[Gender],\"Boy\")","v":0},{"$f":"COUNTIFS(Table1[Date],'Entry Sheet'!$N$3,Table1[Class],\"3\",Table1[Gender],\"Girl\")","v":0},{"$f":"SUM(H7:I7)","v":0},{"$f":"COUNTIFS(Table1[Date],'Entry Sheet'!$N$3,Table1[Class],\"4\",Table1[Gender],\"Boy\")","v":0},{"$f":"COUNTIFS(Table1[Date],'Entry Sheet'!$N$3,Table1[Class],\"4\",Table1[Gender],\"Girl\")","v":0},{"$f":"SUM(K7:L7)","v":0},{"$f":"COUNTIFS(Table1[Date],'Entry Sheet'!$N$3,Table1[Class],\"5\",Table1[Gender],\"Boy\")","v":0},{"$f":"COUNTIFS(Table1[Date],'Entry Sheet'!$N$3,Table1[Class],\"5\",Table1[Gender],\"Girl\")","v":0},{"$f":"SUM(N7:O7)","v":0},{"$f":"COUNTIFS(Table1[Date],'Entry Sheet'!$N$3,Table1[Class],\"6\",Table1[Gender],\"Boy\")","v":0},{"$f":"COUNTIFS(Table1[Date],'Entry Sheet'!$N$3,Table1[Class],\"6\",Table1[Gender],\"Girl\")","v":0},{"$f":"SUM(Q7:R7)","v":0},{"$f":"COUNTIFS(Table1[Date],'Entry Sheet'!$N$3,Table1[Class],\"7\",Table1[Gender],\"Boy\")","v":0},{"$f":"COUNTIFS(Table1[Date],'Entry Sheet'!$N$3,Table1[Class],\"7\",Table1[Gender],\"Girl\")","v":0},{"$f":"SUM(T7:U7)","v":0},{"$f":"COUNTIFS(Table1[Date],'Entry Sheet'!$N$3,Table1[Class],\"8\",Table1[Gender],\"Boy\")","v":0},{"$f":"COUNTIFS(Table1[Date],'Entry Sheet'!$N$3,Table1[Class],\"8\",Table1[Gender],\"Girl\")","v":0},{"$f":"SUM(W7:X7)","v":0},{"$f":"COUNTIFS(Table1[Date],'Entry Sheet'!$N$3,Table1[Class],\"9\",Table1[Gender],\"Boy\")","v":0},{"$f":"COUNTIFS(Table1[Date],'Entry Sheet'!$N$3,Table1[Class],\"9\",Table1[Gender],\"Girl\")","v":0},{"$f":"SUM(Z7:AA7)","v":0},{"$f":"COUNTIFS(Table1[Date],'Entry Sheet'!$N$3,Table1[Class],\"10\",Table1[Gender],\"Boy\")","v":0},{"$f":"COUNTIFS(Table1[Date],'Entry Sheet'!$N$3,Table1[Class],\"10\",Table1[Gender],\"Girl\")","v":0},{"$f":"SUM(AC7:AD7)","v":0},{"$f":"COUNTIFS(Table1[Date],'Entry Sheet'!$N$3,Table1[Class],\"11\",Table1[Gender],\"Boy\")","v":0},{"$f":"COUNTIFS(Table1[Date],'Entry Sheet'!$N$3,Table1[Class],\"11\",Table1[Gender],\"Girl\")","v":0},{"$f":"SUM(AF7:AG7)","v":0},{"$f":"COUNTIFS(Table1[Date],'Entry Sheet'!$N$3,Table1[Class],\"12\",Table1[Gender],\"Boy\")","v":1},{"$f":"COUNTIFS(Table1[Date],'Entry Sheet'!$N$3,Table1[Class],\"12\",Table1[Gender],\"Girl\")","v":0},{"$f":"SUM(AI7:AJ7)","v":1},{"$f":"B7+E7+H7+K7+N7+Q7+T7+W7+Z7+AC7+AF7+AI7","v":1},{"$f":"C7+F7+I7+L7+O7+R7+U7+X7+AA7+AD7+AG7+AJ7","v":0},{"$f":"SUM(AL7:AM7)","v":1}]
["Gen",{"$f":"COUNTIFS(Table1[Date],'Entry Sheet'!$N$3,Table1[Class],\"1\",Table1[Gender],\"Boy\",Table1[Category],\"General\")","v":0},{"$f":"COUNTIFS(Table1[Date],'Entry Sheet'!$N$3,Table1[Class],\"1\",Table1[Gender],\"Girl\",Table1[Category],\"General\")","v":0},{"$f":"SUM(B8:C8)","v":0},{"$f":"COUNTIFS(Table1[Date],'Entry Sheet'!$N$3,Table1[Class],\"2\",Table1[Gender],\"Boy\",Table1[Category],\"General\")","v":0},{"$f":"COUNTIFS(Table1[Date],'Entry Sheet'!$N$3,Table1[Class],\"2\",Table1[Gender],\"Girl\",Table1[Category],\"General\")","v":0},{"$f":"SUM(E8:F8)","v":0},{"$f":"COUNTIFS(Table1[Date],'Entry Sheet'!$N$3,Table1[Class],\"3\",Table1[Gender],\"Boy\",Table1[Category],\"General\")","v":0},{"$f":"COUNTIFS(Table1[Date],'Entry Sheet'!$N$3,Table1[Class],\"3\",Table1[Gender],\"Girl\",Table1[Category],\"General\")","v":0},{"$f":"SUM(H8:I8)","v":0},{"$f":"COUNTIFS(Table1[Date],'Entry Sheet'!$N$3,Table1[Class],\"4\",Table1[Gender],\"Boy\",Table1[Category],\"General\")","v":0},{"$f":"COUNTIFS(Table1[Date],'Entry Sheet'!$N$3,Table1[Class],\"4\",Table1[Gender],\"Girl\",Table1[Category],\"General\")","v":0},{"$f":"SUM(K8:L8)","v":0},{"$f":"COUNTIFS(Table1[Date],'Entry Sheet'!$N$3,Table1[Class],\"5\",Table1[Gender],\"Boy\",Table1[Category],\"General\")","v":0},{"$f":"COUNTIFS(Table1[Date],'Entry Sheet'!$N$3,Table1[Class],\"5\",Table1[Gender],\"Girl\",Table1[Category],\"General\")","v":0},{"$f":"SUM(N8:O8)","v":0},{"$f":"COUNTIFS(Table1[Date],'Entry Sheet'!$N$3,Table1[Class],\"6\",Table1[Gender],\"Boy\",Table1[Category],\"General\")","v":0},{"$f":"COUNTIFS(Table1[Date],'Entry Sheet'!$N$3,Table1[Class],\"6\",Table1[Gender],\"Girl\",Table1[Category],\"General\")","v":0},{"$f":"SUM(Q8:R8)","v":0},{"$f":"COUNTIFS(Table1[Date],'Entry Sheet'!$N$3,Table1[Class],\"7\",Table1[Gender],\"Boy\",Table1[Category],\"General\")","v":0},{"$f":"COUNTIFS(Table1[Date],'Entry Sheet'!$N$3,Table1[Class],\"7\",Table1[Gender],\"Girl\",Table1[Category],\"General\")","v":0},{"$f":"SUM(T8:U8)","v":0},{"$f":"COUNTIFS(Table1[Date],'Entry Sheet'!$N$3,Table1[Class],\"8\",Table1[Gender],\"Boy\",Table1[Category],\"General\")","v":0},{"$f":"COUNTIFS(Table1[Date],'Entry Sheet'!$N$3,Table1[Class],\"8\",Table1[Gender],\"Girl\",Table1[Category],\"General\")","v":0},{"$f":"SUM(W8:X8)","v":0},{"$f":"COUNTIFS(Table1[Date],'Entry Sheet'!$N$3,Table1[Class],\"9\",Table1[Gender],\"Boy\",Table1[Category],\"General\")","v":0},{"$f":"COUNTIFS(Table1[Date],'Entry Sheet'!$N$3,Table1[Class],\"9\",Table1[Gender],\"Girl\",Table1[Category],\"General\")","v":0},{"$f":"SUM(Z8:AA8)","v":0},{"$f":"COUNTIFS(Table1[Date],'Entry Sheet'!$N$3,Table1[Class],\"10\",Table1[Gender],\"Boy\",Table1[Category],\"General\")","v":0},{"$f":"COUNTIFS(Table1[Date],'Entry Sheet'!$N$3,Table1[Class],\"10\",Table1[Gender],\"Girl\",Table1[Category],\"General\")","v":0},{"$f":"SUM(AC8:AD8)","v":0},{"$f":"COUNTIFS(Table1[Date],'Entry Sheet'!$N$3,Table1[Class],\"11\",Table1[Gender],\"Boy\",Table1[Category],\"General\")","v":0},{"$f":"COUNTIFS(Table1[Date],'Entry Sheet'!$N$3,Table1[Class],\"11\",Table1[Gender],\"Girl\",Table1[Category],\"General\")","v":0},{"$f":"SUM(AF8:AG8)","v":0},{"$f":"COUNTIFS(Table1[Date],'Entry Sheet'!$N$3,Table1[Class],\"12\",Table1[Gender],\"Boy\",Table1[Category],\"General\")","v":1},{"$f":"COUNTIFS(Table1[Date],'Entry Sheet'!$N$3,Table1[Class],\"12\",Table1[Gender],\"Girl\",Table1[Category],\"General\")","v":0},{"$f":"SUM(AI8:AJ8)","v":1},{"$f":"B8+E8+H8+K8+N8+Q8+T8+W8+Z8+AC8+AF8+AI8","v":1},{"$f":"C8+F8+I8+L8+O8+R8+U8+X8+AA8+AD8+AG8+AJ8","v":0},{"$f":"SUM(AL8:AM8)","v":1}]
["SC",{"$f":"COUNTIFS(Table1[Date],'Entry Sheet'!$N$3,Table1[Class],\"1\",Table1[Gender],\"Boy\",Table1[Category],\"SC\")","v":0},{"$f":"COUNTIFS(Table1[Date],'Entry Sheet'!$N$3,Table1[Class],\"1\",Table1[Gender],\"Girl\",Table1[Category],\"SC\")","v":0},0,{"$f":"COUNTIFS(Table1[Date],'Entry Sheet'!$N$3,Table1[Class],\"2\",Table1[Gender],\"Boy\",Table1[Category],\"SC\")","v":0},{"$f":"COUNTIFS(Table1[Date],'Entry Sheet'!$N$3,Table1[Class],\"2\",Table1[Gender],\"Girl\",Table1[Category],\"SC\")","v":0},0,{"$f":"COUNTIFS(Table1[Date],'Entry Sheet'!$N$3,Table1[Class],\"3\",Table1[Gender],\"Boy\",Table1[Category],\"SC\")","v":0},{"$f":"COUNTIFS(Table1[Date],'Entry Sheet'!$N$3,Table1[Class],\"3\",Table1[Gender],\"Girl\",Table1[Category],\"SC\")","v":0},0,{"$f":"COUNTIFS(Table1[Date],'Entry Sheet'!$N$3,Table1[Class],\"4\",Table1[Gender],\"Boy\",Table1[Category],\"SC\")","v":0},{"$f":"COUNTIFS(Table1[Date],'Entry Sheet'!$N$3,Table1[Class],\"4\",Table1[Gender],\"Girl\",Table1[Category],\"SC\")","v":0},0,{"$f":"COUNTIFS(Table1[Date],'Entry Sheet'!$N$3,Table1[Class],\"5\",Table1[Gender],\"Boy\",Table1[Category],\"SC\")","v":0},{"$f":"COUNTIFS(Table1[Date],'Entry Sheet'!$N$3,Table1[Class],\"5\",Table1[Gender],\"Girl\",Table1[Category],\"SC\")","v":0},0,{"$f":"COUNTIFS(Table1[Date],'Entry Sheet'!$N$3,Table1[Class],\"6\",Table1[Gender],\"Boy\",Table1[Category],\"SC\")","v":0},{"$f":"COUNTIFS(Table1[Date],'Entry Sheet'!$N$3,Table1[Class],\"6\",Table1[Gender],\"Girl\",Table1[Category],\"SC\")","v":0},0,{"$f":"COUNTIFS(Table1[Date],'Entry Sheet'!$N$3,Table1[Class],\"7\",Table1[Gender],\"Boy\",Table1[Category],\"SC\")","v":0},{"$f":"COUNTIFS(Table1[Date],'Entry Sheet'!$N$3,Table1[Class],\"7\",Table1[Gender],\"Girl\",Table1[Category],\"SC\")","v":0},0,{"$f":"COUNTIFS(Table1[Date],'Entry Sheet'!$N$3,Table1[Class],\"8\",Table1[Gender],\"Boy\",Table1[Category],\"SC\")","v":0},{"$f":"COUNTIFS(Table1[Date],'Entry Sheet'!$N$3,Table1[Class],\"8\",Table1[Gender],\"Girl\",Table1[Category],\"SC\")","v":0},0,{"$f":"COUNTIFS(Table1[Date],'Entry Sheet'!$N$3,Table1[Class],\"9\",Table1[Gender],\"Boy\",Table1[Category],\"SC\")","v":0},{"$f":"COUNTIFS(Table1[Date],'Entry Sheet'!$N$3,Table1[Class],\"9\",Table1[Gender],\"Girl\",Table1[Category],\"SC\")","v":0},0,{"$f":"COUNTIFS(Table1[Date],'Entry Sheet'!$N$3,Table1[Class],\"10\",Table1[Gender],\"Boy\",Table1[Category],\"SC\")","v":0},{"$f":"COUNTIFS(Table1[Date],'Entry Sheet'!$N$3,Table1[Class],\"10\",Table1[Gender],\"Girl\",Table1[Category],\"SC\")","v":0},0,{"$f":"COUNTIFS(Table1[Date],'Entry Sheet'!$N$3,Table1[Class],\"11\",Table1[Gender],\"Boy\",Table1[Category],\"SC\")","v":0},{"$f":"COUNTIFS(Table1[Date],'Entry Sheet'!$N$3,Table1[Class],\"11\",Table1[Gender],\"Girl\",Table1[Category],\"SC\")","v":0},0,{"$f":"COUNTIFS(Table1[Date],'Entry Sheet'!$N$3,Table1[Class],\"12\",Table1[Gender],\"Boy\",Table1[Category],\"SC\")","v":0},{"$f":"COUNTIFS(Table1[Date],'Entry Sheet'!$N$3,Table1[Class],\"12\",Table1[Gender],\"Girl\",Table1[Category],\"SC\")","v":0},0,0,0,0]
["ST",{"$f":"COUNTIFS(Table1[Date],'Entry Sheet'!$N$3,Table1[Class],\"1\",Table1[Gender],\"Boy\",Table1[Category],\"ST\")","v":0},{"$f":"COUNTIFS(Table1[Date],'Entry Sheet'!$N$3,Table1[Class],\"1\",Table1[Gender],\"Girl\",Table1[Category],\"ST\")","v":0},0,{"$f":"COUNTIFS(Table1[Date],'Entry Sheet'!$N$3,Table1[Class],\"2\",Table1[Gender],\"Boy\",Table1[Category],\"ST\")","v":0},{"$f":"COUNTIFS(Table1[Date],'Entry Sheet'!$N$3,Table1[Class],\"2\",Table1[Gender],\"Girl\",Table1[Category],\"ST\")","v":0},0,{"$f":"COUNTIFS(Table1[Date],'Entry Sheet'!$N$3,Table1[Class],\"3\",Table1[Gender],\"Boy\",Table1[Category],\"ST\")","v":0},{"$f":"COUNTIFS(Table1[Date],'Entry Sheet'!$N$3,Table1[Class],\"3\",Table1[Gender],\"Girl\",Table1[Category],\"ST\")","v":0},0,{"$f":"COUNTIFS(Table1[Date],'Entry Sheet'!$N$3,Table1[Class],\"4\",Table1[Gender],\"Boy\",Table1[Category],\"ST\")","v":0},{"$f":"COUNTIFS(Table1[Date],'Entry Sheet'!$N$3,Table1[Class],\"4\",Table1[Gender],\"Girl\",Table1[Category],\"ST\")","v":0},0,{"$f":"COUNTIFS(Table1[Date],'Entry Sheet'!$N$3,Table1[Class],\"5\",Table1[Gender],\"Boy\",Table1[Category],\"ST\")","v":0},{"$f":"COUNTIFS(Table1[Date],'Entry Sheet'!$N$3,Table1[Class],\"5\",Table1[Gender],\"Girl\",Table1[Category],\"ST\")","v":0},0,{"$f":"COUNTIFS(Table1[Date],'Entry Sheet'!$N$3,Table1[Class],\"6\",Table1[Gender],\"Boy\",Table1[Category],\"ST\")","v":0},{"$f":"COUNTIFS(Table1[Date],'Entry Sheet'!$N$3,Table1[Class],\"6\",Table1[Gender],\"Girl\",Table1[Category],\"ST\")","v":0},0,{"$f":"COUNTIFS(Table1[Date],'Entry Sheet'!$N$3,Table1[Class],\"7\",Table1[Gender],\"Boy\",Table1[Category],\"ST\")","v":0},{"$f":"COUNTIFS(Table1[Date],'Entry Sheet'!$N$3,Table1[Class],\"7\",Table1[Gender],\"Girl\",Table1[Category],\"ST\")","v":0},0,{"$f":"COUNTIFS(Table1[Date],'Entry Sheet'!$N$3,Table1[Class],\"8\",Table1[Gender],\"Boy\",Table1[Category],\"ST\")","v":0},{"$f":"COUNTIFS(Table1[Date],'Entry Sheet'!$N$3,Table1[Class],\"8\",Table1[Gender],\"Girl\",Table1[Category],\"ST\")","v":0},0,{"$f":"COUNTIFS(Table1[Date],'Entry Sheet'!$N$3,Table1[Class],\"9\",Table1[Gender],\"Boy\",Table1[Category],\"ST\")","v":0},{"$f":"COUNTIFS(Table1[Date],'Entry Sheet'!$N$3,Table1[Class],\"9\",Table1[Gender],\"Girl\",Table1[Category],\"ST\")","v":0},0,{"$f":"COUNTIFS(Table1[Date],'Entry Sheet'!$N$3,Table1[Class],\"10\",Table1[Gender],\"Boy\",Table1[Category],\"ST\")","v":0},{"$f":"COUNTIFS(Table1[Date],'Entry Sheet'!$N$3,Table1[Class],\"10\",Table1[Gender],\"Girl\",Table1[Category],\"ST\")","v":0},0,{"$f":"COUNTIFS(Table1[Date],'Entry Sheet'!$N$3,Table1[Class],\"11\",Table1[Gender],\"Boy\",Table1[Category],\"ST\")","v":0},{"$f":"COUNTIFS(Table1[Date],'Entry Sheet'!$N$3,Table1[Class],\"11\",Table1[Gender],\"Girl\",Table1[Category],\"ST\")","v":0},0,{"$f":"COUNTIFS(Table1[Date],'Entry Sheet'!$N$3,Table1[Class],\"12\",Table1[Gender],\"Boy\",Table1[Category],\"ST\")","v":0},{"$f":"COUNTIFS(Table1[Date],'Entry Sheet'!$N$3,Table1[Class],\"12\",Table1[Gender],\"Girl\",Table1[Category],\"ST\")","v":0},0,0,0,0]
["OBC",{"$f":"COUNTIFS(Table1[Date],'Entry Sheet'!$N$3,Table1[Class],\"1\",Table1[Gender],\"Boy\",Table1[Category],\"OBC\")","v":0},{"$f":"COUNTIFS(Table1[Date],'Entry Sheet'!$N$3,Table1[Class],\"1\",Table1[Gender],\"Girl\",Table1[Category],\"OBC\")","v":0},0,{"$f":"COUNTIFS(Table1[Date],'Entry Sheet'!$N$3,Table1[Class],\"2\",Table1[Gender],\"Boy\",Table1[Category],\"OBC\")","v":0},{"$f":"COUNTIFS(Table1[Date],'Entry Sheet'!$N$3,Table1[Class],\"2\",Table1[Gender],\"Girl\",Table1[Category],\"OBC\")","v":0},0,{"$f":"COUNTIFS(Table1[Date],'Entry Sheet'!$N$3,Table1[Class],\"3\",Table1[Gender],\"Boy\",Table1[Category],\"OBC\")","v":0},{"$f":"COUNTIFS(Table1[Date],'Entry Sheet'!$N$3,Table1[Class],\"3\",Table1[Gender],\"Girl\",Table1[Category],\"OBC\")","v":0},0,{"$f":"COUNTIFS(Table1[Date],'Entry Sheet'!$N$3,Table1[Class],\"4\",Table1[Gender],\"Boy\",Table1[Category],\"OBC\")","v":0},{"$f":"COUNTIFS(Table1[Date],'Entry Sheet'!$N$3,Table1[Class],\"4\",Table1[Gender],\"Girl\",Table1[Category],\"OBC\")","v":0},0,{"$f":"COUNTIFS(Table1[Date],'Entry Sheet'!$N$3,Table1[Class],\"5\",Table1[Gender],\"Boy\",Table1[Category],\"OBC\")","v":0},{"$f":"COUNTIFS(Table1[Date],'Entry Sheet'!$N$3,Table1[Class],\"5\",Table1[Gender],\"Girl\",Table1[Category],\"OBC\")","v":0},0,{"$f":"COUNTIFS(Table1[Date],'Entry Sheet'!$N$3,Table1[Class],\"6\",Table1[Gender],\"Boy\",Table1[Category],\"OBC\")","v":0},{"$f":"COUNTIFS(Table1[Date],'Entry Sheet'!$N$3,Table1[Class],\"6\",Table1[Gender],\"Girl\",Table1[Category],\"OBC\")","v":0},0,{"$f":"COUNTIFS(Table1[Date],'Entry Sheet'!$N$3,Table1[Class],\"7\",Table1[Gender],\"Boy\",Table1[Category],\"OBC\")","v":0},{"$f":"COUNTIFS(Table1[Date],'Entry Sheet'!$N$3,Table1[Class],\"7\",Table1[Gender],\"Girl\",Table1[Category],\"OBC\")","v":0},0,{"$f":"COUNTIFS(Table1[Date],'Entry Sheet'!$N$3,Table1[Class],\"8\",Table1[Gender],\"Boy\",Table1[Category],\"OBC\")","v":0},{"$f":"COUNTIFS(Table1[Date],'Entry Sheet'!$N$3,Table1[Class],\"8\",Table1[Gender],\"Girl\",Table1[Category],\"OBC\")","v":0},0,{"$f":"COUNTIFS(Table1[Date],'Entry Sheet'!$N$3,Table1[Class],\"9\",Table1[Gender],\"Boy\",Table1[Category],\"OBC\")","v":0},{"$f":"COUNTIFS(Table1[Date],'Entry Sheet'!$N$3,Table1[Class],\"9\",Table1[Gender],\"Girl\",Table1[Category],\"OBC\")","v":0},0,{"$f":"COUNTIFS(Table1[Date],'Entry Sheet'!$N$3,Table1[Class],\"10\",Table1[Gender],\"Boy\",Table1[Category],\"OBC\")","v":0},{"$f":"COUNTIFS(Table1[Date],'Entry Sheet'!$N$3,Table1[Class],\"10\",Table1[Gender],\"Girl\",Table1[Category],\"OBC\")","v":0},0,{"$f":"COUNTIFS(Table1[Date],'Entry Sheet'!$N$3,Table1[Class],\"11\",Table1[Gender],\"Boy\",Table1[Category],\"OBC\")","v":0},{"$f":"COUNTIFS(Table1[Date],'Entry Sheet'!$N$3,Table1[Class],\"11\",Table1[Gender],\"Girl\",Table1[Category],\"OBC\")","v":0},0,{"$f":"COUNTIFS(Table1[Date],'Entry Sheet'!$N$3,Table1[Class],\"12\",Table1[Gender],\"Boy\",Table1[Category],\"OBC\")","v":0},{"$f":"COUNTIFS(Table1[Date],'Entry Sheet'!$N$3,Table1[Class],\"12\",Table1[Gender],\"Girl\",Table1[Category],\"OBC\")","v":0},0,0,0,0]
["SBC",{"$f":"COUNTIFS(Table1[Date],'Entry Sheet'!$N$3,Table1[Class],\"1\",Table1[Gender],\"Boy\",Table1[Category],\"SBC\")","v":0},{"$f":"COUNTIFS(Table1[Date],'Entry Sheet'!$N$3,Table1[Class],\"1\",Table1[Gender],\"Girl\",Table1[Category],\"SBC\")","v":0},0,{"$f":"COUNTIFS(Table1[Date],'Entry Sheet'!$N$3,Table1[Class],\"2\",Table1[Gender],\"Boy\",Table1[Category],\"SBC\")","v":0},{"$f":"COUNTIFS(Table1[Date],'Entry Sheet'!$N$3,Table1[Class],\"2\",Table1[Gender],\"Girl\",Table1[Category],\"SBC\")","v":0},0,{"$f":"COUNTIFS(Table1[Date],'Entry Sheet'!$N$3,Table1[Class],\"3\",Table1[Gender],\"Boy\",Table1[Category],\"SBC\")","v":0},{"$f":"COUNTIFS(Table1[Date],'Entry Sheet'!$N$3,Table1[Class],\"3\",Table1[Gender],\"Girl\",Table1[Category],\"SBC\")","v":0},0,{"$f":"COUNTIFS(Table1[Date],'Entry Sheet'!$N$3,Table1[Class],\"4\",Table1[Gender],\"Boy\",Table1[Category],\"SBC\")","v":0},{"$f":"COUNTIFS(Table1[Date],'Entry Sheet'!$N$3,Table1[Class],\"4\",Table1[Gender],\"Girl\",Table1[Category],\"SBC\")","v":0},0,{"$f":"COUNTIFS(Table1[Date],'Entry Sheet'!$N$3,Table1[Class],\"5\",Table1[Gender],\"Boy\",Table1[Category],\"SBC\")","v":0},{"$f":"COUNTIFS(Table1[Date],'Entry Sheet'!$N$3,Table1[Class],\"5\",Table1[Gender],\"Girl\",Table1[Category],\"SBC\")","v":0},0,{"$f":"COUNTIFS(Table1[Date],'Entry Sheet'!$N$3,Table1[Class],\"6\",Table1[Gender],\"Boy\",Table1[Category],\"SBC\")","v":0},{"$f":"COUNTIFS(Table1[Date],'Entry Sheet'!$N$3,Table1[Class],\"6\",Table1[Gender],\"Girl\",Table1[Category],\"SBC\")","v":0},0,{"$f":"COUNTIFS(Table1[Date],'Entry Sheet'!$N$3,Table1[Class],\"7\",Table1[Gender],\"Boy\",Table1[Category],\"SBC\")","v":0},{"$f":"COUNTIFS(Table1[Date],'Entry Sheet'!$N$3,Table1[Class],\"7\",Table1[Gender],\"Girl\",Table1[Category],\"SBC\")","v":0},0,{"$f":"COUNTIFS(Table1[Date],'Entry Sheet'!$N$3,Table1[Class],\"8\",Table1[Gender],\"Boy\",Table1[Category],\"SBC\")","v":0},{"$f":"COUNTIFS(Table1[Date],'Entry Sheet'!$N$3,Table1[Class],\"8\",Table1[Gender],\"Girl\",Table1[Category],\"SBC\")","v":0},0,{"$f":"COUNTIFS(Table1[Date],'Entry Sheet'!$N$3,Table1[Class],\"9\",Table1[Gender],\"Boy\",Table1[Category],\"SBC\")","v":0},{"$f":"COUNTIFS(Table1[Date],'Entry Sheet'!$N$3,Table1[Class],\"9\",Table1[Gender],\"Girl\",Table1[Category],\"SBC\")","v":0},0,{"$f":"COUNTIFS(Table1[Date],'Entry Sheet'!$N$3,Table1[Class],\"10\",Table1[Gender],\"Boy\",Table1[Category],\"SBC\")","v":0},{"$f":"COUNTIFS(Table1[Date],'Entry Sheet'!$N$3,Table1[Class],\"10\",Table1[Gender],\"Girl\",Table1[Category],\"SBC\")","v":0},0,{"$f":"COUNTIFS(Table1[Date],'Entry Sheet'!$N$3,Table1[Class],\"11\",Table1[Gender],\"Boy\",Table1[Category],\"SBC\")","v":0},{"$f":"COUNTIFS(Table1[Date],'Entry Sheet'!$N$3,Table1[Class],\"11\",Table1[Gender],\"Girl\",Table1[Category],\"SBC\")","v":0},0,{"$f":"COUNTIFS(Table1[Date],'Entry Sheet'!$N$3,Table1[Class],\"12\",Table1[Gender],\"Boy\",Table1[Category],\"SBC\")","v":0},{"$f":"COUNTIFS(Table1[Date],'Entry Sheet'!$N$3,Table1[Class],\"12\",Table1[Gender],\"Girl\",Table1[Category],\"SBC\")","v":0},0,0,0,0]
["Minority",{"$f":"COUNTIFS(Table1[Date],'Entry Sheet'!$N$3,Table1[Class],\"1\",Table1[Gender],\"Boy\",Table1[Category],\"Minority\")","v":0},{"$f":"COUNTIFS(Table1[Date],'Entry Sheet'!$N$3,Table1[Class],\"1\",Table1[Gender],\"Girl\",Table1[Category],\"Minority\")","v":0},0,{"$f":"COUNTIFS(Table1[Date],'Entry Sheet'!$N$3,Table1[Class],\"2\",Table1[Gender],\"Boy\",Table1[Category],\"Minority\")","v":0},{"$f":"COUNTIFS(Table1[Date],'Entry Sheet'!$N$3,Table1[Class],\"2\",Table1[Gender],\"Girl\",Table1[Category],\"Minority\")","v":0},0,{"$f":"COUNTIFS(Table1[Date],'Entry Sheet'!$N$3,Table1[Class],\"3\",Table1[Gender],\"Boy\",Table1[Category],\"Minority\")","v":0},{"$f":"COUNTIFS(Table1[Date],'Entry Sheet'!$N$3,Table1[Class],\"3\",Table1[Gender],\"Girl\",Table1[Category],\"Minority\")","v":0},{"$f":"SUM(H13:I13)","v":0},{"$f":"COUNTIFS(Table1[Date],'Entry Sheet'!$N$3,Table1[Class],\"4\",Table1[Gender],\"Boy\",Table1[Category],\"Minority\")","v":0},{"$f":"COUNTIFS(Table1[Date],'Entry Sheet'!$N$3,Table1[Class],\"4\",Table1[Gender],\"Girl\",Table1[Category],\"Minority\")","v":0},0,{"$f":"COUNTIFS(Table1[Date],'Entry Sheet'!$N$3,Table1[Class],\"5\",Table1[Gender],\"Boy\",Table1[Category],\"Minority\")","v":0},{"$f":"COUNTIFS(Table1[Date],'Entry Sheet'!$N$3,Table1[Class],\"5\",Table1[Gender],\"Girl\",Table1[Category],\"Minority\")","v":0},0,{"$f":"COUNTIFS(Table1[Date],'Entry Sheet'!$N$3,Table1[Class],\"6\",Table1[Gender],\"Boy\",Table1[Category],\"Minority\")","v":0},{"$f":"COUNTIFS(Table1[Date],'Entry Sheet'!$N$3,Table1[Class],\"6\",Table1[Gender],\"Girl\",Table1[Category],\"Minority\")","v":0},0,{"$f":"COUNTIFS(Table1[Date],'Entry Sheet'!$N$3,Table1[Class],\"7\",Table1[Gender],\"Boy\",Table1[Category],\"Minority\")","v":0},{"$f":"COUNTIFS(Table1[Date],'Entry Sheet'!$N$3,Table1[Class],\"7\",Table1[Gender],\"Girl\",Table1[Category],\"Minority\")","v":0},0,{"$f":"COUNTIFS(Table1[Date],'Entry Sheet'!$N$3,Table1[Class],\"8\",Table1[Gender],\"Boy\",Table1[Category],\"Minority\")","v":0},{"$f":"COUNTIFS(Table1[Date],'Entry Sheet'!$N$3,Table1[Class],\"8\",Table1[Gender],\"Girl\",Table1[Category],\"Minority\")","v":0},0,{"$f":"COUNTIFS(Table1[Date],'Entry Sheet'!$N$3,Table1[Class],\"9\",Table1[Gender],\"Boy\",Table1[Category],\"Minority\")","v":0},{"$f":"COUNTIFS(Table1[Date],'Entry Sheet'!$N$3,Table1[Class],\"9\",Table1[Gender],\"Girl\",Table1[Category],\"Minority\")","v":0},0,{"$f":"COUNTIFS(Table1[Date],'Entry Sheet'!$N$3,Table1[Class],\"10\",Table1[Gender],\"Boy\",Table1[Category],\"Minority\")","v":0},{"$f":"COUNTIFS(Table1[Date],'Entry Sheet'!$N$3,Table1[Class],\"10\",Table1[Gender],\"Girl\",Table1[Category],\"Minority\")","v":0},0,{"$f":"COUNTIFS(Table1[Date],'Entry Sheet'!$N$3,Table1[Class],\"11\",Table1[Gender],\"Boy\",Table1[Category],\"Minority\")","v":0},{"$f":"COUNTIFS(Table1[Date],'Entry Sheet'!$N$3,Table1[Class],\"11\",Table1[Gender],\"Girl\",Table1[Category],\"Minority\")","v":0},0,{"$f":"COUNTIFS(Table1[Date],'Entry Sheet'!$N$3,Table1[Class],\"12\",Table1[Gender],\"Boy\",Table1[Category],\"Minority\")","v":0},{"$f":"COUNTIFS(Table1[Date],'Entry Sheet'!$N$3,Table1[Class],\"12\",Table1[Gender],\"Girl\",Table1[Category],\"Minority\")","v":0},0,0,0,0]
[]
[{"$nulls":10},"Starting date",{"$nulls":8},"2020-07-01",{"$nulls":3},"to",{"$nulls":4},"2020-08-27",{"$nulls":3},"admission report"]
[]
[]
["Category","Class 1",null,null,"Class 2",null,null,"Class 3",null,null,"Class 4",null,null,"Class 5",null,null,"Class 6",null,null,"Class 7",null,null,"Class 8",null,null,"Class 9",null,null,"Class 10",null,null,"Class 11",null,null,"Class 12",null,null,"TOTAL"]
[null,"Boy","Girl","Total","Boy","Girl","Total","Boy","Girl","Total","Boy","Girl","Total","Boy","Girl","Total","Boy","Girl","Total","Boy","Girl","Total","Boy","Girl","Total","Boy","Girl","Total","Boy","Girl","Total","Boy","Girl","Total","Boy","Girl","Total","Boy","Girl","Total"]
[null,{"$f":"COUNTIFS(Table1[Date],\">=\"&'Report Section'!$T$15,Table1[Date],\"<=\"&'Report Section'!$AC$15,Table1[Class],\"1\",Table1[Gender],\"Boy\")","v":0},{"$f":"COUNTIFS(Table1[Date],\">=\"&'Report Section'!$T$15,Table1[Date],\"<=\"&'Report Section'!$AC$15,Table1[Class],\"1\",Table1[Gender],\"Girl\")","v":0},{"$f":"SUM(B20:C20)","v":0},{"$f":"COUNTIFS(Table1[Date],\">=\"&'Report Section'!$T$15,Table1[Date],\"<=\"&'Report Section'!$AC$15,Table1[Class],\"2\",Table1[Gender],\"Boy\")","v":0},{"$f":"COUNTIFS(Table1[Date],\">=\"&'Report Section'!$T$15,Table1[Date],\"<=\"&'Report Section'!$AC$15,Table1[Class],\"2\",Table1[Gender],\"Girl\")","v":0},{"$f":"SUM(E20:F20)","v":0},{"$f":"COUNTIFS(Table1[Date],\">=\"&'Report Section'!$T$15,Table1[Date],\"<=\"&'Report Section'!$AC$15,Table1[Class],\"3\",Table1[Gender],\"Boy\")","v":0},{"$f":"COUNTIFS(Table1[Date],\">=\"&'Report Section'!$T$15,Table1[Date],\"<=\"&'Report Section'!$AC$15,Table1[Class],\"3\",Table1[Gender],\"Girl\")","v":0},{"$f":"SUM(H20:I20)","v":0},{"$f":"COUNTIFS(Table1[Date],\">=\"&'Report Section'!$T$15,Table1[Date],\"<=\"&'Report Section'!$AC$15,Table1[Class],\"4\",Table1[Gender],\"Boy\")","v":0},{"$f":"COUNTIFS(Table1[Date],\">=\"&'Report Section'!$T$15,Table1[Date],\"<=\"&'Report Section'!$AC$15,Table1[Class],\"4\",Table1[Gender],\"Girl\")","v":0},{"$f":"SUM(K20:L20)","v":0},{"$f":"COUNTIFS(Table1[Date],\">=\"&'Report Section'!$T$15,Table1[Date],\"<=\"&'Report Section'!$AC$15,Table1[Class],\"5\",Table1[Gender],\"Boy\")","v":0},{"$f":"COUNTIFS(Table1[Date],\">=\"&'Report Section'!$T$15,Table1[Date],\"<=\"&'Report Section'!$AC$15,Table1[Class],\"5\",Table1[Gender],\"Girl\")","v":0},{"$f":"SUM(N20:O20)","v":0},{"$f":"COUNTIFS(Table1[Date],\">=\"&'Report Section'!$T$15,Table1[Date],\"<=\"&'Report Section'!$AC$15,Table1[Class],\"6\",Table1[Gender],\"Boy\")","v":0},{"$f":"COUNTIFS(Table1[Date],\">=\"&'Report Section'!$T$15,Table1[Date],\"<=\"&'Report Section'!$AC$15,Table1[Class],\"6\",Table1[Gender],\"Girl\")","v":0},{"$f":"SUM(Q20:R20)","v":0},{"$f":"COUNTIFS(Table1[Date],\">=\"&'Report Section'!$T$15,Table1[Date],\"<=\"&'Report Section'!$AC$15,Table1[Class],\"7\",Table1[Gender],\"Boy\")","v":0},{"$f":"COUNTIFS(Table1[Date],\">=\"&'Report Section'!$T$15,Table1[Date],\"<=\"&'Report Section'!$AC$15,Table1[Class],\"7\",Table1[Gender],\"Girl\")","v":0},{"$f":"SUM(T20:U20)","v":0},{"$f":"COUNTIFS(Table1[Date],\">=\"&'Report Section'!$T$15,Table1[Date],\"<=\"&'Report Section'!$AC$15,Table1[Class],\"8\",Table1[Gender],\"Boy\")","v":0},{"$f":"COUNTIFS(Table1[Date],\">=\"&'Report Section'!$T$15,Table1[Date],\"<=\"&'Report Section'!$AC$15,Table1[Class],\"8\",Table1[Gender],\"Girl\")","v":0},{"$f":"SUM(W20:X20)","v":0},{"$f":"COUNTIFS(Table1[Date],\">=\"&'Report Section'!$T$15,Table1[Date],\"<=\"&'Report Section'!$AC$15,Table1[Class],\"9\",Table1[Gender],\"Boy\")","v":0},{"$f":"COUNTIFS(Table1[Date],\">=\"&'Report Section'!$T$15,Table1[Date],\"<=\"&'Report Section'!$AC$15,Table1[Class],\"9\",Table1[Gender],\"Girl\")","v":0},{"$f":"SUM(Z20:AA20)","v":0},{"$f":"COUNTIFS(Table1[Date],\">=\"&'Report Section'!$T$15,Table1[Date],\"<=\"&'Report Section'!$AC$15,Table1[Class],\"10\",Table1[Gender],\"Boy\")","v":0},{"$f":"COUNTIFS(Table1[Date],\">=\"&'Report Section'!$T$15,Table1[Date],\"<=\"&'Report Section'!$AC$15,Table1[Class],\"10\",Table1[Gender],\"Girl\")","v":0},{"$f":"SUM(AC20:AD20)","v":0},{"$f":"COUNTIFS(Table1[Date],\">=\"&'Report Section'!$T$15,Table1[Date],\"<=\"&'Report Section'!$AC$15,Table1[Class],\"11\",Table1[Gender],\"Boy\")","v":0},{"$f":"COUNTIFS(Table1[Date],\">=\"&'Report Section'!$T$15,Table1[Date],\"<=\"&'Report Section'!$AC$15,Table1[Class],\"11\",Table1[Gender],\"Girl\")","v":0},{"$f":"SUM(AF20:AG20)","v":0},{"$f":"COUNTIFS(Table1[Date],\">=\"&'Report Section'!$T$15,Table1[Date],\"<=\"&'Report Section'!$AC$15,Table1[Class],\"12\",Table1[Gender],\"Boy\")","v":1},{"$f":"COUNTIFS(Table1[Date],\">=\"&'Report Section'!$T$15,Table1[Date],\"<=\"&'Report Section'!$AC$15,Table1[Class],\"12\",Table1[Gender],\"Girl\")","v":0},{"$f":"SUM(AI20:AJ20)","v":1},{"$f":"B20+E20+H20+K20+N20+Q20+T20+W20+Z20+AC20+AF20+AI20","v":1},{"$f":"C20+F20+I20+L20+O20+R20+U20+X20+AA20+AD20+AG20+AJ20","v":0},{"$f":"SUM(AL20:AM20)","v":1}]
["Gen",{"$f":"COUNTIFS(Table1[Date],\">=\"&'Report Section'!$T$15,Table1[Date],\"<=\"&'Report Section'!$AC$15,Table1[Class],\"1\",Table1[Gender],\"Boy\",Table1[Category],\"General\")","v":0},{"$f":"COUNTIFS(Table1[Date],\">=\"&'Report Section'!$T$15,Table1[Date],\"<=\"&'Report Section'!$AC$15,Table1[Class],\"1\",Table1[Gender],\"Girl\",Table1[Category],\"General\")","v":0},{"$f":"SUM(B21:C21)","v":0},{"$f":"COUNTIFS(Table1[Date],\">=\"&'Report Section'!$T$15,Table1[Date],\"<=\"&'Report Section'!$AC$15,Table1[Class],\"2\",Table1[Gender],\"Boy\",Table1[Category],\"General\")","v":0},{"$f":"COUNTIFS(Table1[Date],\">=\"&'Report Section'!$T$15,Table1[Date],\"<=\"&'Report Section'!$AC$15,Table1[Class],\"2\",Table1[Gender],\"Girl\",Table1[Category],\"General\")","v":0},{"$f":"SUM(E21:F21)","v":0},{"$f":"COUNTIFS(Table1[Date],\">=\"&'Report Section'!$T$15,Table1[Date],\"<=\"&'Report Section'!$AC$15,Table1[Class],\"3\",Table1[Gender],\"Boy\",Table1[Category],\"General\")","v":0},{"$f":"COUNTIFS(Table1[Date],\">=\"&'Report Section'!$T$15,Table1[Date],\"<=\"&'Report Section'!$AC$15,Table1[Class],\"3\",Table1[Gender],\"Girl\",Table1[Category],\"General\")","v":0},{"$f":"SUM(H21:I21)","v":0},{"$f":"COUNTIFS(Table1[Date],\">=\"&'Report Section'!$T$15,Table1[Date],\"<=\"&'Report Section'!$AC$15,Table1[Class],\"4\",Table1[Gender],\"Boy\",Table1[Category],\"General\")","v":0},{"$f":"COUNTIFS(Table1[Date],\">=\"&'Report Section'!$T$15,Table1[Date],\"<=\"&'Report Section'!$AC$15,Table1[Class],\"4\",Table1[Gender],\"Girl\",Table1[Category],\"General\")","v":0},{"$f":"SUM(K21:L21)","v":0},{"$f":"COUNTIFS(Table1[Date],\">=\"&'Report Section'!$T$15,Table1[Date],\"<=\"&'Report Section'!$AC$15,Table1[Class],\"5\",Table1[Gender],\"Boy\",Table1[Category],\"General\")","v":0},{"$f":"COUNTIFS(Table1[Date],\">=\"&'Report Section'!$T$15,Table1[Date],\"<=\"&'Report Section'!$AC$15,Table1[Class],\"5\",Table1[Gender],\"Girl\",Table1[Category],\"General\")","v":0},{"$f":"SUM(N21:O21)","v":0},{"$f":"COUNTIFS(Table1[Date],\">=\"&'Report Section'!$T$15,Table1[Date],\"<=\"&'Report Section'!$AC$15,Table1[Class],\"6\",Table1[Gender],\"Boy\",Table1[Category],\"General\")","v":0},{"$f":"COUNTIFS(Table1[Date],\">=\"&'Report Section'!$T$15,Table1[Date],\"<=\"&'Report Section'!$AC$15,Table1[Class],\"6\",Table1[Gender],\"Girl\",Table1[Category],\"General\")","v":0},{"$f":"SUM(Q21:R21)","v":0},{"$f":"COUNTIFS(Table1[Date],\">=\"&'Report Section'!$T$15,Table1[Date],\"<=\"&'Report Section'!$AC$15,Table1[Class],\"7\",Table1[Gender],\"Boy\",Table1[Category],\"General\")","v":0},{"$f":"COUNTIFS(Table1[Date],\">=\"&'Report Section'!$T$15,Table1[Date],\"<=\"&'Report Section'!$AC$15,Table1[Class],\"7\",Table1[Gender],\"Girl\",Table1[Category],\"General\")","v":0},{"$f":"SUM(T21:U21)","v":0},{"$f":"COUNTIFS(Table1[Date],\">=\"&'Report Section'!$T$15,Table1[Date],\"<=\"&'Report Section'!$AC$15,Table1[Class],\"8\",Table1[Gender],\"Boy\",Table1[Category],\"General\")","v":0},{"$f":"COUNTIFS(Table1[Date],\">=\"&'Report Section'!$T$15,Table1[Date],\"<=\"&'Report Section'!$AC$15,Table1[Class],\"8\",Table1[Gender],\"Girl\",Table1[Category],\"General\")","v":0},{"$f":"SUM(W21:X21)","v":0},{"$f":"COUNTIFS(Table1[Date],\">=\"&'Report Section'!$T$15,Table1[Date],\"<=\"&'Report Section'!$AC$15,Table1[Class],\"9\",Table1[Gender],\"Boy\",Table1[Category],\"General\")","v":0},{"$f":"COUNTIFS(Table1[Date],\">=\"&'Report Section'!$T$15,Table1[Date],\"<=\"&'Report Section'!$AC$15,Table1[Class],\"9\",Table1[Gender],\"Girl\",Table1[Category],\"General\")","v":0},{"$f":"SUM(Z21:AA21)","v":0},{"$f":"COUNTIFS(Table1[Date],\">=\"&'Report Section'!$T$15,Table1[Date],\"<=\"&'Report Section'!$AC$15,Table1[Class],\"10\",Table1[Gender],\"Boy\",Table1[Category],\"General\")","v":0},{"$f":"COUNTIFS(Table1[Date],\">=\"&'Report Section'!$T$15,Table1[Date],\"<=\"&'Report Section'!$AC$15,Table1[Class],\"10\",Table1[Gender],\"Girl\",Table1[Category],\"General\")","v":0},{"$f":"SUM(AC21:AD21)","v":0},{"$f":"COUNTIFS(Table1[Date],\">=\"&'Report Section'!$T$15,Table1[Date],\"<=\"&'Report Section'!$AC$15,Table1[Class],\"11\",Table1[Gender],\"Boy\",Table1[Category],\"General\")","v":0},{"$f":"COUNTIFS(Table1[Date],\">=\"&'Report Section'!$T$15,Table1[Date],\"<=\"&'Report Section'!$AC$15,Table1[Class],\"11\",Table1[Gender],\"Girl\",Table1[Category],\"General\")","v":0},{"$f":"SUM(AF21:AG21)","v":0},{"$f":"COUNTIFS(Table1[Date],\">=\"&'Report Section'!$T$15,Table1[Date],\"<=\"&'Report Section'!$AC$15,Table1[Class],\"12\",Table1[Gender],\"Boy\",Table1[Category],\"General\")","v":1},{"$f":"COUNTIFS(Table1[Date],\">=\"&'Report Section'!$T$15,Table1[Date],\"<=\"&'Report Section'!$AC$15,Table1[Class],\"12\",Table1[Gender],\"Girl\",Table1[Category],\"General\")","v":0},{"$f":"SUM(AI21:AJ21)","v":1},{"$f":"B21+E21+H21+K21+N21+Q21+T21+W21+Z21+AC21+AF21+AI21","v":1},{"$f":"C21+F21+I21+L21+O21+R21+U21+X21+AA21+AD21+AG21+AJ21","v":0},1]
["SC",{"$f":"COUNTIFS(Table1[Date],\">=\"&'Report Section'!$T$15,Table1[Date],\"<=\"&'Report Section'!$AC$15,Table1[Class],\"1\",Table1[Gender],\"Boy\",Table1[Category],\"SC\")","v":0},{"$f":"COUNTIFS(Table1[Date],\">=\"&'Report Section'!$T$15,Table1[Date],\"<=\"&'Report Section'!$AC$15,Table1[Class],\"1\",Table1[Gender],\"Girl\",Table1[Category],\"SC\")","v":0},0,{"$f":"COUNTIFS(Table1[Date],\">=\"&'Report Section'!$T$15,Table1[Date],\"<=\"&'Report Section'!$AC$15,Table1[Class],\"2\",Table1[Gender],\"Boy\",Table1[Category],\"SC\")","v":0},{"$f":"COUNTIFS(Table1[Date],\">=\"&'Report Section'!$T$15,Table1[Date],\"<=\"&'Report Section'!$AC$15,Table1[Class],\"2\",Table1[Gender],\"Girl\",Table1[Category],\"SC\")","v":0},0,{"$f":"COUNTIFS(Table1[Date],\">=\"&'Report Section'!$T$15,Table1[Date],\"<=\"&'Report Section'!$AC$15,Table1[Class],\"3\",Table1[Gender],\"Boy\",Table1[Category],\"SC\")","v":0},{"$f":"COUNTIFS(Table1[Date],\">=\"&'Report Section'!$T$15,Table1[Date],\"<=\"&'Report Section'!$AC$15,Table1[Class],\"3\",Table1[Gender],\"Girl\",Table1[Category],\"SC\")","v":0},0,{"$f":"COUNTIFS(Table1[Date],\">=\"&'Report Section'!$T$15,Table1[Date],\"<=\"&'Report Section'!$AC$15,Table1[Class],\"4\",Table1[Gender],\"Boy\",Table1[Category],\"SC\")","v":0},{"$f":"COUNTIFS(Table1[Date],\">=\"&'Report Section'!$T$15,Table1[Date],\"<=\"&'Report Section'!$AC$15,Table1[Class],\"4\",Table1[Gender],\"Girl\",Table1[Category],\"SC\")","v":0},0,{"$f":"COUNTIFS(Table1[Date],\">=\"&'Report Section'!$T$15,Table1[Date],\"<=\"&'Report Section'!$AC$15,Table1[Class],\"5\",Table1[Gender],\"Boy\",Table1[Category],\"SC\")","v":0},{"$f":"COUNTIFS(Table1[Date],\">=\"&'Report Section'!$T$15,Table1[Date],\"<=\"&'Report Section'!$AC$15,Table1[Class],\"5\",Table1[Gender],\"Girl\",Table1[Category],\"SC\")","v":0},0,{"$f":"COUNTIFS(Table1[Date],\">=\"&'Report Section'!$T$15,Table1[Date],\"<=\"&'Report Section'!$AC$15,Table1[Class],\"6\",Table1[Gender],\"Boy\",Table1[Category],\"SC\")","v":0},{"$f":"COUNTIFS(Table1[Date],\">=\"&'Report Section'!$T$15,Table1[Date],\"<=\"&'Report Section'!$AC$15,Table1[Class],\"6\",Table1[Gender],\"Girl\",Table1[Category],\"SC\")","v":0},0,{"$f":"COUNTIFS(Table1[Date],\">=\"&'Report Section'!$T$15,Table1[Date],\"<=\"&'Report Section'!$AC$15,Table1[Class],\"7\",Table1[Gender],\"Boy\",Table1[Category],\"SC\")","v":0},{"$f":"COUNTIFS(Table1[Date],\">=\"&'Report Section'!$T$15,Table1[Date],\"<=\"&'Report Section'!$AC$15,Table1[Class],\"7\",Table1[Gender],\"Girl\",Table1[Category],\"SC\")","v":0},0,{"$f":"COUNTIFS(Table1[Date],\">=\"&'Report Section'!$T$15,Table1[Date],\"<=\"&'Report Section'!$AC$15,Table1[Class],\"8\",Table1[Gender],\"Boy\",Table1[Category],\"SC\")","v":0},{"$f":"COUNTIFS(Table1[Date],\">=\"&'Report Section'!$T$15,Table1[Date],\"<=\"&'Report Section'!$AC$15,Table1[Class],\"8\",Table1[Gender],\"Girl\",Table1[Category],\"SC\")","v":0},0,{"$f":"COUNTIFS(Table1[Date],\">=\"&'Report Section'!$T$15,Table1[Date],\"<=\"&'Report Section'!$AC$15,Table1[Class],\"9\",Table1[Gender],\"Boy\",Table1[Category],\"SC\")","v":0},{"$f":"COUNTIFS(Table1[Date],\">=\"&'Report Section'!$T$15,Table1[Date],\"<=\"&'Report Section'!$AC$15,Table1[Class],\"9\",Table1[Gender],\"Girl\",Table1[Category],\"SC\")","v":0},0,{"$f":"COUNTIFS(Table1[Date],\">=\"&'Report Section'!$T$15,Table1[Date],\"<=\"&'Report Section'!$AC$15,Table1[Class],\"10\",Table1[Gender],\"Boy\",Table1[Category],\"SC\")","v":0},{"$f":"COUNTIFS(Table1[Date],\">=\"&'Report Section'!$T$15,Table1[Date],\"<=\"&'Report Section'!$AC$15,Table1[Class],\"10\",Table1[Gender],\"Girl\",Table1[Category],\"SC\")","v":0},0,{"$f":"COUNTIFS(Table1[Date],\">=\"&'Report Section'!$T$15,Table1[Date],\"<=\"&'Report Section'!$AC$15,Table1[Class],\"11\",Table1[Gender],\"Boy\",Table1[Category],\"SC\")","v":0},{"$f":"COUNTIFS(Table1[Date],\">=\"&'Report Section'!$T$15,Table1[Date],\"<=\"&'Report Section'!$AC$15,Table1[Class],\"11\",Table1[Gender],\"Girl\",Table1[Category],\"SC\")","v":0},0,{"$f":"COUNTIFS(Table1[Date],\">=\"&'Report Section'!$T$15,Table1[Date],\"<=\"&'Report Section'!$AC$15,Table1[Class],\"12\",Table1[Gender],\"Boy\",Table1[Category],\"SC\")","v":0},{"$f":"COUNTIFS(Table1[Date],\">=\"&'Report Section'!$T$15,Table1[Date],\"<=\"&'Report Section'!$AC$15,Table1[Class],\"12\",Table1[Gender],\"Girl\",Table1[Category],\"SC\")","v":0},0,0,0,0]
["ST",{"$f":"COUNTIFS(Table1[Date],\">=\"&'Report Section'!$T$15,Table1[Date],\"<=\"&'Report Section'!$AC$15,Table1[Class],\"1\",Table1[Gender],\"Boy\",Table1[Category],\"ST\")","v":0},{"$f":"COUNTIFS(Table1[Date],\">=\"&'Report Section'!$T$15,Table1[Date],\"<=\"&'Report Section'!$AC$15,Table1[Class],\"1\",Table1[Gender],\"Girl\",Table1[Category],\"ST\")","v":0},0,{"$f":"COUNTIFS(Table1[Date],\">=\"&'Report Section'!$T$15,Table1[Date],\"<=\"&'Report Section'!$AC$15,Table1[Class],\"2\",Table1[Gender],\"Boy\",Table1[Category],\"ST\")","v":0},{"$f":"COUNTIFS(Table1[Date],\">=\"&'Report Section'!$T$15,Table1[Date],\"<=\"&'Report Section'!$AC$15,Table1[Class],\"2\",Table1[Gender],\"Girl\",Table1[Category],\"ST\")","v":0},0,{"$f":"COUNTIFS(Table1[Date],\">=\"&'Report Section'!$T$15,Table1[Date],\"<=\"&'Report Section'!$AC$15,Table1[Class],\"3\",Table1[Gender],\"Boy\",Table1[Category],\"ST\")","v":0},{"$f":"COUNTIFS(Table1[Date],\">=\"&'Report Section'!$T$15,Table1[Date],\"<=\"&'Report Section'!$AC$15,Table1[Class],\"3\",Table1[Gender],\"Girl\",Table1[Category],\"ST\")","v":0},0,{"$f":"COUNTIFS(Table1[Date],\">=\"&'Report Section'!$T$15,Table1[Date],\"<=\"&'Report Section'!$AC$15,Table1[Class],\"4\",Table1[Gender],\"Boy\",Table1[Category],\"ST\")","v":0},{"$f":"COUNTIFS(Table1[Date],\">=\"&'Report Section'!$T$15,Table1[Date],\"<=\"&'Report Section'!$AC$15,Table1[Class],\"4\",Table1[Gender],\"Girl\",Table1[Category],\"ST\")","v":0},0,{"$f":"COUNTIFS(Table1[Date],\">=\"&'Report Section'!$T$15,Table1[Date],\"<=\"&'Report Section'!$AC$15,Table1[Class],\"5\",Table1[Gender],\"Boy\",Table1[Category],\"ST\")","v":0},{"$f":"COUNTIFS(Table1[Date],\">=\"&'Report Section'!$T$15,Table1[Date],\"<=\"&'Report Section'!$AC$15,Table1[Class],\"5\",Table1[Gender],\"Girl\",Table1[Category],\"ST\")","v":0},0,{"$f":"COUNTIFS(Table1[Date],\">=\"&'Report Section'!$T$15,Table1[Date],\"<=\"&'Report Section'!$AC$15,Table1[Class],\"6\",Table1[Gender],\"Boy\",Table1[Category],\"ST\")","v":0},{"$f":"COUNTIFS(Table1[Date],\">=\"&'Report Section'!$T$15,Table1[Date],\"<=\"&'Report Section'!$AC$15,Table1[Class],\"6\",Table1[Gender],\"Girl\",Table1[Category],\"ST\")","v":0},0,{"$f":"COUNTIFS(Table1[Date],\">=\"&'Report Section'!$T$15,Table1[Date],\"<=\"&'Report Section'!$AC$15,Table1[Class],\"7\",Table1[Gender],\"Boy\",Table1[Category],\"ST\")","v":0},{"$f":"COUNTIFS(Table1[Date],\">=\"&'Report Section'!$T$15,Table1[Date],\"<=\"&'Report Section'!$AC$15,Table1[Class],\"7\",Table1[Gender],\"Girl\",Table1[Category],\"ST\")","v":0},0,{"$f":"COUNTIFS(Table1[Date],\">=\"&'Report Section'!$T$15,Table1[Date],\"<=\"&'Report Section'!$AC$15,Table1[Class],\"8\",Table1[Gender],\"Boy\",Table1[Category],\"ST\")","v":0},{"$f":"COUNTIFS(Table1[Date],\">=\"&'Report Section'!$T$15,Table1[Date],\"<=\"&'Report Section'!$AC$15,Table1[Class],\"8\",Table1[Gender],\"Girl\",Table1[Category],\"ST\")","v":0},0,{"$f":"COUNTIFS(Table1[Date],\">=\"&'Report Section'!$T$15,Table1[Date],\"<=\"&'Report Section'!$AC$15,Table1[Class],\"9\",Table1[Gender],\"Boy\",Table1[Category],\"ST\")","v":0},{"$f":"COUNTIFS(Table1[Date],\">=\"&'Report Section'!$T$15,Table1[Date],\"<=\"&'Report Section'!$AC$15,Table1[Class],\"9\",Table1[Gender],\"Girl\",Table1[Category],\"ST\")","v":0},0,{"$f":"COUNTIFS(Table1[Date],\">=\"&'Report Section'!$T$15,Table1[Date],\"<=\"&'Report Section'!$AC$15,Table1[Class],\"10\",Table1[Gender],\"Boy\",Table1[Category],\"ST\")","v":0},{"$f":"COUNTIFS(Table1[Date],\">=\"&'Report Section'!$T$15,Table1[Date],\"<=\"&'Report Section'!$AC$15,Table1[Class],\"10\",Table1[Gender],\"Girl\",Table1[Category],\"ST\")","v":0},0,{"$f":"COUNTIFS(Table1[Date],\">=\"&'Report Section'!$T$15,Table1[Date],\"<=\"&'Report Section'!$AC$15,Table1[Class],\"11\",Table1[Gender],\"Boy\",Table1[Category],\"ST\")","v":0},{"$f":"COUNTIFS(Table1[Date],\">=\"&'Report Section'!$T$15,Table1[Date],\"<=\"&'Report Section'!$AC$15,Table1[Class],\"11\",Table1[Gender],\"Girl\",Table1[Category],\"ST\")","v":0},0,{"$f":"COUNTIFS(Table1[Date],\">=\"&'Report Section'!$T$15,Table1[Date],\"<=\"&'Report Section'!$AC$15,Table1[Class],\"12\",Table1[Gender],\"Boy\",Table1[Category],\"ST\")","v":0},{"$f":"COUNTIFS(Table1[Date],\">=\"&'Report Section'!$T$15,Table1[Date],\"<=\"&'Report Section'!$AC$15,Table1[Class],\"12\",Table1[Gender],\"Girl\",Table1[Category],\"ST\")","v":0},0,0,0,0]
["OBC",{"$f":"COUNTIFS(Table1[Date],\">=\"&'Report Section'!$T$15,Table1[Date],\"<=\"&'Report Section'!$AC$15,Table1[Class],\"1\",Table1[Gender],\"Boy\",Table1[Category],\"OBC\")","v":0},{"$f":"COUNTIFS(Table1[Date],\">=\"&'Report Section'!$T$15,Table1[Date],\"<=\"&'Report Section'!$AC$15,Table1[Class],\"1\",Table1[Gender],\"Girl\",Table1[Category],\"OBC\")","v":0},0,{"$f":"COUNTIFS(Table1[Date],\">=\"&'Report Section'!$T$15,Table1[Date],\"<=\"&'Report Section'!$AC$15,Table1[Class],\"2\",Table1[Gender],\"Boy\",Table1[Category],\"OBC\")","v":0},{"$f":"COUNTIFS(Table1[Date],\">=\"&'Report Section'!$T$15,Table1[Date],\"<=\"&'Report Section'!$AC$15,Table1[Class],\"2\",Table1[Gender],\"Girl\",Table1[Category],\"OBC\")","v":0},0,{"$f":"COUNTIFS(Table1[Date],\">=\"&'Report Section'!$T$15,Table1[Date],\"<=\"&'Report Section'!$AC$15,Table1[Class],\"3\",Table1[Gender],\"Boy\",Table1[Category],\"OBC\")","v":0},{"$f":"COUNTIFS(Table1[Date],\">=\"&'Report Section'!$T$15,Table1[Date],\"<=\"&'Report Section'!$AC$15,Table1[Class],\"3\",Table1[Gender],\"Girl\",Table1[Category],\"OBC\")","v":0},0,{"$f":"COUNTIFS(Table1[Date],\">=\"&'Report Section'!$T$15,Table1[Date],\"<=\"&'Report Section'!$AC$15,Table1[Class],\"4\",Table1[Gender],\"Boy\",Table1[Category],\"OBC\")","v":0},{"$f":"COUNTIFS(Table1[Date],\">=\"&'Report Section'!$T$15,Table1[Date],\"<=\"&'Report Section'!$AC$15,Table1[Class],\"4\",Table1[Gender],\"Girl\",Table1[Category],\"OBC\")","v":0},0,{"$f":"COUNTIFS(Table1[Date],\">=\"&'Report Section'!$T$15,Table1[Date],\"<=\"&'Report Section'!$AC$15,Table1[Class],\"5\",Table1[Gender],\"Boy\",Table1[Category],\"OBC\")","v":0},{"$f":"COUNTIFS(Table1[Date],\">=\"&'Report Section'!$T$15,Table1[Date],\"<=\"&'Report Section'!$AC$15,Table1[Class],\"5\",Table1[Gender],\"Girl\",Table1[Category],\"OBC\")","v":0},0,{"$f":"COUNTIFS(Table1[Date],\">=\"&'Report Section'!$T$15,Table1[Date],\"<=\"&'Report Section'!$AC$15,Table1[Class],\"6\",Table1[Gender],\"Boy\",Table1[Category],\"OBC\")","v":0},{"$f":"COUNTIFS(Table1[Date],\">=\"&'Report Section'!$T$15,Table1[Date],\"<=\"&'Report Section'!$AC$15,Table1[Class],\"6\",Table1[Gender],\"Girl\",Table1[Category],\"OBC\")","v":0},0,{"$f":"COUNTIFS(Table1[Date],\">=\"&'Report Section'!$T$15,Table1[Date],\"<=\"&'Report Section'!$AC$15,Table1[Class],\"7\",Table1[Gender],\"Boy\",Table1[Category],\"OBC\")","v":0},{"$f":"COUNTIFS(Table1[Date],\">=\"&'Report Section'!$T$15,Table1[Date],\"<=\"&'Report Section'!$AC$15,Table1[Class],\"7\",Table1[Gender],\"Girl\",Table1[Category],\"OBC\")","v":0},0,{"$f":"COUNTIFS(Table1[Date],\">=\"&'Report Section'!$T$15,Table1[Date],\"<=\"&'Report Section'!$AC$15,Table1[Class],\"8\",Table1[Gender],\"Boy\",Table1[Category],\"OBC\")","v":0},{"$f":"COUNTIFS(Table1[Date],\">=\"&'Report Section'!$T$15,Table1[Date],\"<=\"&'Report Section'!$AC$15,Table1[Class],\"8\",Table1[Gender],\"Girl\",Table1[Category],\"OBC\")","v":0},0,{"$f":"COUNTIFS(Table1[Date],\">=\"&'Report Section'!$T$15,Table1[Date],\"<=\"&'Report Section'!$AC$15,Table1[Class],\"9\",Table1[Gender],\"Boy\",Table1[Category],\"OBC\")","v":0},{"$f":"COUNTIFS(Table1[Date],\">=\"&'Report Section'!$T$15,Table1[Date],\"<=\"&'Report Section'!$AC$15,Table1[Class],\"9\",Table1[Gender],\"Girl\",Table1[Category],\"OBC\")","v":0},0,{"$f":"COUNTIFS(Table1[Date],\">=\"&'Report Section'!$T$15,Table1[Date],\"<=\"&'Report Section'!$AC$15,Table1[Class],\"10\",Table1[Gender],\"Boy\",Table1[Category],\"OBC\")","v":0},{"$f":"COUNTIFS(Table1[Date],\">=\"&'Report Section'!$T$15,Table1[Date],\"<=\"&'Report Section'!$AC$15,Table1[Class],\"10\",Table1[Gender],\"Girl\",Table1[Category],\"OBC\")","v":0},0,{"$f":"COUNTIFS(Table1[Date],\">=\"&'Report Section'!$T$15,Table1[Date],\"<=\"&'Report Section'!$AC$15,Table1[Class],\"11\",Table1[Gender],\"Boy\",Table1[Category],\"OBC\")","v":0},{"$f":"COUNTIFS(Table1[Date],\">=\"&'Report Section'!$T$15,Table1[Date],\"<=\"&'Report Section'!$AC$15,Table1[Class],\"11\",Table1[Gender],\"Girl\",Table1[Category],\"OBC\")","v":0},0,{"$f":"COUNTIFS(Table1[Date],\">=\"&'Report Section'!$T$15,Table1[Date],\"<=\"&'Report Section'!$AC$15,Table1[Class],\"12\",Table1[Gender],\"Boy\",Table1[Category],\"OBC\")","v":0},{"$f":"COUNTIFS(Table1[Date],\">=\"&'Report Section'!$T$15,Table1[Date],\"<=\"&'Report Section'!$AC$15,Table1[Class],\"12\",Table1[Gender],\"Girl\",Table1[Category],\"OBC\")","v":0},0,0,0,0]
["SBC",{"$f":"COUNTIFS(Table1[Date],\">=\"&'Report Section'!$T$15,Table1[Date],\"<=\"&'Report Section'!$AC$15,Table1[Class],\"1\",Table1[Gender],\"Boy\",Table1[Category],\"SBC\")","v":0},{"$f":"COUNTIFS(Table1[Date],\">=\"&'Report Section'!$T$15,Table1[Date],\"<=\"&'Report Section'!$AC$15,Table1[Class],\"1\",Table1[Gender],\"Girl\",Table1[Category],\"SBC\")","v":0},0,{"$f":"COUNTIFS(Table1[Date],\">=\"&'Report Section'!$T$15,Table1[Date],\"<=\"&'Report Section'!$AC$15,Table1[Class],\"2\",Table1[Gender],\"Boy\",Table1[Category],\"SBC\")","v":0},{"$f":"COUNTIFS(Table1[Date],\">=\"&'Report Section'!$T$15,Table1[Date],\"<=\"&'Report Section'!$AC$15,Table1[Class],\"2\",Table1[Gender],\"Girl\",Table1[Category],\"SBC\")","v":0},0,{"$f":"COUNTIFS(Table1[Date],\">=\"&'Report Section'!$T$15,Table1[Date],\"<=\"&'Report Section'!$AC$15,Table1[Class],\"3\",Table1[Gender],\"Boy\",Table1[Category],\"SBC\")","v":0},{"$f":"COUNTIFS(Table1[Date],\">=\"&'Report Section'!$T$15,Table1[Date],\"<=\"&'Report Section'!$AC$15,Table1[Class],\"3\",Table1[Gender],\"Girl\",Table1[Category],\"SBC\")","v":0},0,{"$f":"COUNTIFS(Table1[Date],\">=\"&'Report Section'!$T$15,Table1[Date],\"<=\"&'Report Section'!$AC$15,Table1[Class],\"4\",Table1[Gender],\"Boy\",Table1[Category],\"SBC\")","v":0},{"$f":"COUNTIFS(Table1[Date],\">=\"&'Report Section'!$T$15,Table1[Date],\"<=\"&'Report Section'!$AC$15,Table1[Class],\"4\",Table1[Gender],\"Girl\",Table1[Category],\"SBC\")","v":0},0,{"$f":"COUNTIFS(Table1[Date],\">=\"&'Report Section'!$T$15,Table1[Date],\"<=\"&'Report Section'!$AC$15,Table1[Class],\"5\",Table1[Gender],\"Boy\",Table1[Category],\"SBC\")","v":0},{"$f":"COUNTIFS(Table1[Date],\">=\"&'Report Section'!$T$15,Table1[Date],\"<=\"&'Report Section'!$AC$15,Table1[Class],\"5\",Table1[Gender],\"Girl\",Table1[Category],\"SBC\")","v":0},0,{"$f":"COUNTIFS(Table1[Date],\">=\"&'Report Section'!$T$15,Table1[Date],\"<=\"&'Report Section'!$AC$15,Table1[Class],\"6\",Table1[Gender],\"Boy\",Table1[Category],\"SBC\")","v":0},{"$f":"COUNTIFS(Table1[Date],\">=\"&'Report Section'!$T$15,Table1[Date],\"<=\"&'Report Section'!$AC$15,Table1[Class],\"6\",Table1[Gender],\"Girl\",Table1[Category],\"SBC\")","v":0},0,{"$f":"COUNTIFS(Table1[Date],\">=\"&'Report Section'!$T$15,Table1[Date],\"<=\"&'Report Section'!$AC$15,Table1[Class],\"7\",Table1[Gender],\"Boy\",Table1[Category],\"SBC\")","v":0},{"$f":"COUNTIFS(Table1[Date],\">=\"&'Report Section'!$T$15,Table1[Date],\"<=\"&'Report Section'!$AC$15,Table1[Class],\"7\",Table1[Gender],\"Girl\",Table1[Category],\"SBC\")","v":0},0,{"$f":"COUNTIFS(Table1[Date],\">=\"&'Report Section'!$T$15,Table1[Date],\"<=\"&'Report Section'!$AC$15,Table1[Class],\"8\",Table1[Gender],\"Boy\",Table1[Category],\"SBC\")","v":0},{"$f":"COUNTIFS(Table1[Date],\">=\"&'Report Section'!$T$15,Table1[Date],\"<=\"&'Report Section'!$AC$15,Table1[Class],\"8\",Table1[Gender],\"Girl\",Table1[Category],\"SBC\")","v":0},0,{"$f":"COUNTIFS(Table1[Date],\">=\"&'Report Section'!$T$15,Table1[Date],\"<=\"&'Report Section'!$AC$15,Table1[Class],\"9\",Table1[Gender],\"Boy\",Table1[Category],\"SBC\")","v":0},{"$f":"COUNTIFS(Table1[Date],\">=\"&'Report Section'!$T$15,Table1[Date],\"<=\"&'Report Section'!$AC$15,Table1[Class],\"9\",Table1[Gender],\"Girl\",Table1[Category],\"SBC\")","v":0},0,{"$f":"COUNTIFS(Table1[Date],\">=\"&'Report Section'!$T$15,Table1[Date],\"<=\"&'Report Section'!$AC$15,Table1[Class],\"10\",Table1[Gender],\"Boy\",Table1[Category],\"SBC\")","v":0},{"$f":"COUNTIFS(Table1[Date],\">=\"&'Report Section'!$T$15,Table1[Date],\"<=\"&'Report Section'!$AC$15,Table1[Class],\"10\",Table1[Gender],\"Girl\",Table1[Category],\"SBC\")","v":0},0,{"$f":"COUNTIFS(Table1[Date],\">=\"&'Report Section'!$T$15,Table1[Date],\"<=\"&'Report Section'!$AC$15,Table1[Class],\"11\",Table1[Gender],\"Boy\",Table1[Category],\"SBC\")","v":0},{"$f":"COUNTIFS(Table1[Date],\">=\"&'Report Section'!$T$15,Table1[Date],\"<=\"&'Report Section'!$AC$15,Table1[Class],\"11\",Table1[Gender],\"Girl\",Table1[Category],\"SBC\")","v":0},0,{"$f":"COUNTIFS(Table1[Date],\">=\"&'Report Section'!$T$15,Table1[Date],\"<=\"&'Report Section'!$AC$15,Table1[Class],\"12\",Table1[Gender],\"Boy\",Table1[Category],\"SBC\")","v":0},{"$f":"COUNTIFS(Table1[Date],\">=\"&'Report Section'!$T$15,Table1[Date],\"<=\"&'Report Section'!$AC$15,Table1[Class],\"12\",Table1[Gender],\"Girl\",Table1[Category],\"SBC\")","v":0},0,0,0,0]
["Minority",{"$f":"COUNTIFS(Table1[Date],\">=\"&'Report Section'!$T$15,Table1[Date],\"<=\"&'Report Section'!$AC$15,Table1[Class],\"1\",Table1[Gender],\"Boy\",Table1[Category],\"Minority\")","v":0},{"$f":"COUNTIFS(Table1[Date],\">=\"&'Report Section'!$T$15,Table1[Date],\"<=\"&'Report Section'!$AC$15,Table1[Class],\"1\",Table1[Gender],\"Girl\",Table1[Category],\"Minority\")","v":0},0,{"$f":"COUNTIFS(Table1[Date],\">=\"&'Report Section'!$T$15,Table1[Date],\"<=\"&'Report Section'!$AC$15,Table1[Class],\"2\",Table1[Gender],\"Boy\",Table1[Category],\"Minority\")","v":0},{"$f":"COUNTIFS(Table1[Date],\">=\"&'Report Section'!$T$15,Table1[Date],\"<=\"&'Report Section'!$AC$15,Table1[Class],\"2\",Table1[Gender],\"Girl\",Table1[Category],\"Minority\")","v":0},0,{"$f":"COUNTIFS(Table1[Date],\">=\"&'Report Section'!$T$15,Table1[Date],\"<=\"&'Report Section'!$AC$15,Table1[Class],\"3\",Table1[Gender],\"Boy\",Table1[Category],\"Minority\")","v":0},{"$f":"COUNTIFS(Table1[Date],\">=\"&'Report Section'!$T$15,Table1[Date],\"<=\"&'Report Section'!$AC$15,Table1[Class],\"3\",Table1[Gender],\"Girl\",Table1[Category],\"Minority\")","v":0},0,{"$f":"COUNTIFS(Table1[Date],\">=\"&'Report Section'!$T$15,Table1[Date],\"<=\"&'Report Section'!$AC$15,Table1[Class],\"4\",Table1[Gender],\"Boy\",Table1[Category],\"Minority\")","v":0},{"$f":"COUNTIFS(Table1[Date],\">=\"&'Report Section'!$T$15,Table1[Date],\"<=\"&'Report Section'!$AC$15,Table1[Class],\"4\",Table1[Gender],\"Girl\",Table1[Category],\"Minority\")","v":0},0,{"$f":"COUNTIFS(Table1[Date],\">=\"&'Report Section'!$T$15,Table1[Date],\"<=\"&'Report Section'!$AC$15,Table1[Class],\"5\",Table1[Gender],\"Boy\",Table1[Category],\"Minority\")","v":0},{"$f":"COUNTIFS(Table1[Date],\">=\"&'Report Section'!$T$15,Table1[Date],\"<=\"&'Report Section'!$AC$15,Table1[Class],\"5\",Table1[Gender],\"Girl\",Table1[Category],\"Minority\")","v":0},0,{"$f":"COUNTIFS(Table1[Date],\">=\"&'Report Section'!$T$15,Table1[Date],\"<=\"&'Report Section'!$AC$15,Table1[Class],\"6\",Table1[Gender],\"Boy\",Table1[Category],\"Minority\")","v":0},{"$f":"COUNTIFS(Table1[Date],\">=\"&'Report Section'!$T$15,Table1[Date],\"<=\"&'Report Section'!$AC$15,Table1[Class],\"6\",Table1[Gender],\"Girl\",Table1[Category],\"Minority\")","v":0},0,{"$f":"COUNTIFS(Table1[Date],\">=\"&'Report Section'!$T$15,Table1[Date],\"<=\"&'Report Section'!$AC$15,Table1[Class],\"7\",Table1[Gender],\"Boy\",Table1[Category],\"Minority\")","v":0},{"$f":"COUNTIFS(Table1[Date],\">=\"&'Report Section'!$T$15,Table1[Date],\"<=\"&'Report Section'!$AC$15,Table1[Class],\"7\",Table1[Gender],\"Girl\",Table1[Category],\"Minority\")","v":0},0,{"$f":"COUNTIFS(Table1[Date],\">=\"&'Report Section'!$T$15,Table1[Date],\"<=\"&'Report Section'!$AC$15,Table1[Class],\"8\",Table1[Gender],\"Boy\",Table1[Category],\"Minority\")","v":0},{"$f":"COUNTIFS(Table1[Date],\">=\"&'Report Section'!$T$15,Table1[Date],\"<=\"&'Report Section'!$AC$15,Table1[Class],\"8\",Table1[Gender],\"Girl\",Table1[Category],\"Minority\")","v":0},0,{"$f":"COUNTIFS(Table1[Date],\">=\"&'Report Section'!$T$15,Table1[Date],\"<=\"&'Report Section'!$AC$15,Table1[Class],\"9\",Table1[Gender],\"Boy\",Table1[Category],\"Minority\")","v":0},{"$f":"COUNTIFS(Table1[Date],\">=\"&'Report Section'!$T$15,Table1[Date],\"<=\"&'Report Section'!$AC$15,Table1[Class],\"9\",Table1[Gender],\"Girl\",Table1[Category],\"Minority\")","v":0},0,{"$f":"COUNTIFS(Table1[Date],\">=\"&'Report Section'!$T$15,Table1[Date],\"<=\"&'Report Section'!$AC$15,Table1[Class],\"10\",Table1[Gender],\"Boy\",Table1[Category],\"Minority\")","v":0},{"$f":"COUNTIFS(Table1[Date],\">=\"&'Report Section'!$T$15,Table1[Date],\"<=\"&'Report Section'!$AC$15,Table1[Class],\"10\",Table1[Gender],\"Girl\",Table1[Category],\"Minority\")","v":0},0,{"$f":"COUNTIFS(Table1[Date],\">=\"&'Report Section'!$T$15,Table1[Date],\"<=\"&'Report Section'!$AC$15,Table1[Class],\"11\",Table1[Gender],\"Boy\",Table1[Category],\"Minority\")","v":0},{"$f":"COUNTIFS(Table1[Date],\">=\"&'Report Section'!$T$15,Table1[Date],\"<=\"&'Report Section'!$AC$15,Table1[Class],\"11\",Table1[Gender],\"Girl\",Table1[Category],\"Minority\")","v":0},0,{"$f":"COUNTIFS(Table1[Date],\">=\"&'Report Section'!$T$15,Table1[Date],\"<=\"&'Report Section'!$AC$15,Table1[Class],\"12\",Table1[Gender],\"Boy\",Table1[Category],\"Minority\")","v":0},{"$f":"COUNTIFS(Table1[Date],\">=\"&'Report Section'!$T$15,Table1[Date],\"<=\"&'Report Section'!$AC$15,Table1[Class],\"12\",Table1[Gender],\"Girl\",Table1[Category],\"Minority\")","v":0},0,0,0,0]
[]
[{"$nulls":6},"izos'kksRlo izHkkjh gLrk{kj",{"$nulls":25},"laLFkk iz/kku gLrk{kj e; lhy"]